[Event "56th Biel Festival MTO 2023"]
[White "Jaivardhan Raj"]
[Black "Perkampus,Laurin"]
[Site "Biel"]
[Round "4.45"]
[Annotator "ChessBase"]
[Result "1-0"]
[Date "2023.07.20"]
[WhiteElo "2009"]
[BlackElo "2197"]
[PlyCount "129"]
[TimeControl "60"]

1. e4 {[%emt 0:0:0]} c6 {[%emt 0:0:0]} 2. d4 {[%emt 0:0:0]} d5 {[%emt 0:0:0]} 3. Nc3 {[%emt 0:0:0]} dxe4 {[%emt 0:0:0]} 4. Nxe4 {[%emt 0:0:0]} Nf6 {[%emt 0:0:0]} 5. Nxf6+ {[%emt 0:0:0]} exf6 {[%emt 0:0:0]} 6. c3 {[%emt 0:0:0]} Bd6 {[%emt 0:0:0]} 7. Bd3 {[%emt 0:0:0]} O-O {[%emt 0:0:0]} 8. Qc2 {[%emt 0:0:0]} Re8+ {[%emt 0:0:0]} 9. Ne2 {[%emt 0:0:0]} h5 {[%emt 0:0:0]} 10. O-O {[%emt 0:0:0]} h4 {[%emt 0:0:0]} 11. h3 {[%emt 0:0:0]} Nd7 {[%emt 0:0:0]} 12. Be3 {[%emt 0:0:0]} Nf8 {[%emt 0:0:0]} 13. Rad1 {[%emt 0:0:0]} Be6 {[%emt 0:0:0]} 14. c4 {[%emt 0:0:0]} Rc8 {[%emt 0:9:38]} 15. b3 {[%emt 0:0:0]} Bb8 {[%emt 0:10:30]} 16. Qd2 {[%emt 0:1:42]} Qd7 {[%emt 0:12:46]} 17. Bf4 {[%emt 0:3:47]} Ng6 {[%emt 0:4:1]} 18. Bxb8 {[%emt 0:7:43]} Rxb8 {[%emt 0:0:7]} 19. Qc2 {[%emt 0:3:45]} Qc7 {[%emt 0:12:22]} 20. Rfe1 {[%emt 0:3:30]} Ne7 {[%emt 0:8:17]} 21. Nc3 {[%emt 0:0:54]} Rbd8 {[%emt 0:12:12]} 22. Be4 {[%emt 0:8:55]} f5 {[%emt 0:8:13]} 23. Bf3 {[%emt 0:1:21]} b5 {[%emt 0:6:48]} 24. Ne2 {[%emt 0:9:35]} bxc4 {[%emt 0:1:27]} 25. bxc4 {[%emt 0:0:2]} Nc8 {[%emt 0:3:24]} 26. Nc1 {[%emt 0:2:9]} Nb6 {[%emt 0:4:1]} 27. Be2 {[%emt 0:0:2]} f4 {[%emt 0:4:2]} 28. Nb3 {[%emt 0:6:10]} Qc8 {[%emt 0:4:46]} 29. Na5 {[%emt 0:4:15]} Bf5 {[%emt 0:1:3]} 30. Qc1 {[%emt 0:0:31]} Re4 {[%emt 0:1:9]} 31. Bf3 {[%emt 0:1:18]} Rxe1+ {[%emt 0:0:42]} 32. Rxe1 {[%emt 0:0:2]} Rxd4 {[%emt 0:0:6]} 33. Nxc6 {[%emt 0:0:0]} Rxc4 {[%emt 0:0:55]} 34. Qxc4 {[%emt 0:0:25]} Nxc4 {[%emt 0:0:30]} 35. Ne7+ {[%emt 0:0:11]} Kf8 {[%emt 0:0:0]} 36. Nxc8 {[%emt 0:0:0]} Bxc8 {[%emt 0:0:0]} 37. Re4 {[%emt 0:0:0]} Be6 {[%emt 0:0:0]} 38. Rxf4 {[%emt 0:0:0]} g5 {[%emt 0:0:0]} 39. Rd4 {[%emt 0:0:0]} Ke7 {[%emt 0:0:0]} 40. Bd5 {[%emt 0:0:0]} Nb6 {[%emt 0:0:0]} 41. Bxe6 {[%emt 0:0:0]} Kxe6 {[%emt 0:0:0]} 42. Re4+ {[%emt 0:0:0]} Kf6 {[%emt 0:0:0]} 43. Kf1 {[%emt 0:0:0]} a5 {[%emt 0:0:0]} 44. Re1 {[%emt 0:0:0]} Nd5 {[%emt 0:0:0]} 45. Rc1 {[%emt 0:0:0]} Nb4 {[%emt 0:0:0]} 46. a3 {[%emt 0:0:0]} Nd3 {[%emt 0:0:0]} 47. Rc6+ {[%emt 0:0:0]} Kf5 {[%emt 0:0:0]} 48. Ra6 {[%emt 0:0:0]} Kf4 {[%emt 0:0:0]} 49. Rxa5 {[%emt 0:0:0]} f5 {[%emt 0:0:0]} 50. Rb5 {[%emt 0:0:0]} g4 {[%emt 0:0:0]} 51. g3+ {[%emt 0:0:0]} hxg3 {[%emt 0:0:0]} 52. fxg3+ {[%emt 0:0:0]} Ke4 {[%emt 0:0:0]} 53. hxg4 {[%emt 0:1:20]} fxg4 {[%emt 0:0:0]} 54. Ke2 {[%emt 0:2:2]} Ne5 {[%emt 0:0:0]} 55. Rxe5+ {[%emt 0:2:2]} Kxe5 {[%emt 0:0:0]} 56. Ke3 {[%emt 0:0:10]} Kf5 {[%emt 0:0:0]} 57. a4 {[%emt 0:0:5]} Ke5 {[%emt 0:0:0]} 58. a5 {[%emt 0:0:9]} Kd5 {[%emt 0:0:0]} 59. Kf4 {[%emt 0:0:40]} Kc5 {[%emt 0:0:0]} 60. Kxg4 {[%emt 0:0:8]} Kb5 {[%emt 0:0:0]} 61. Kf5 {[%emt 0:0:18]} Kxa5 {[%emt 0:0:0]} 62. g4 {[%emt 0:0:7]} Kb6 {[%emt 0:0:0]} 63. g5 {[%emt 0:0:8]} Kc7 {[%emt 0:0:0]} 64. Ke6 {[%emt 0:0:18]} Kd8 {[%emt 0:0:0]} 65. Kf7 {[%emt 0:0:8]} 1-0

[Event "56th Biel Festival MTO 2023"]
[White "Gemelli,Romain"]
[Black "Adocchio,Giampiero"]
[Site "Biel"]
[Round "4.46"]
[Annotator "ChessBase"]
[Result "0-1"]
[Date "2023.07.20"]
[WhiteElo "2122"]
[BlackElo "2165"]
[PlyCount "74"]
[TimeControl "60"]

1. d4 {[%emt 0:0:0]} d5 {[%emt 0:0:0]} 2. c4 {[%emt 0:0:0]} c6 {[%emt 0:0:0]} 3. Nc3 {[%emt 0:0:0]} Nf6 {[%emt 0:0:0]} 4. Nf3 {[%emt 0:0:0]} e6 {[%emt 0:0:0]} 5. e3 {[%emt 0:0:0]} Nbd7 {[%emt 0:0:0]} 6. Qc2 {[%emt 0:0:0]} Bd6 {[%emt 0:0:0]} 7. Be2 {[%emt 0:0:0]} O-O {[%emt 0:0:0]} 8. O-O {[%emt 0:0:0]} Qe7 {[%emt 0:0:0]} 9. Rd1 {[%emt 0:0:0]} b6 {[%emt 0:0:0]} 10. e4 {[%emt 0:0:0]} dxe4 {[%emt 0:0:0]} 11. Nxe4 {[%emt 0:0:0]} Nxe4 {[%emt 0:0:0]} 12. Qxe4 {[%emt 0:0:0]} Bb7 {[%emt 0:0:21]} 13. Bf4 {[%emt 0:4:15]} Nf6 {[%emt 0:3:22]} 14. Bxd6 {[%emt 0:0:40]} Qxd6 {[%emt 0:0:6]} 15. Qh4 {[%emt 0:1:29]} Rfd8 {[%emt 0:4:24]} 16. a3 {[%emt 0:9:17]} c5 {[%emt 0:2:59]} 17. Rd2 {[%emt 0:10:57]} Qc7 {[%emt 0:12:51]} 18. Rad1 {[%emt 0:3:13]} Ne4 {[%emt 0:12:28]} 19. Rd3 {[%emt 0:13:9]} cxd4 {[%emt 0:4:48]} 20. Rxd4 {[%emt 0:6:18]} Rxd4 {[%emt 0:0:22]} 21. Rxd4 {[%emt 0:0:15]} Nf6 {[%emt 0:0:50]} 22. Qg5 {[%emt 0:9:11]} h6 {[%emt 0:10:20]} 23. Qe5 {[%emt 0:5:47]} Qe7 {[%emt 0:2:6]} 24. Qe3 {[%emt 0:10:29]} Rd8 {[%emt 0:7:45]} 25. Ne5 {[%emt 0:2:36]} Rd6 {[%emt 0:5:16]} 26. Qd3 {[%emt 0:2:19]} Ne8 {[%emt 0:1:46]} 27. b4 {[%emt 0:4:0]} Rxd4 {[%emt 0:5:4]} 28. Qxd4 {[%emt 0:0:32]} Qg5 {[%emt 0:0:27]} 29. f3 {[%emt 0:1:36]} f6 {[%emt 0:1:16]} 30. Nd3 {[%emt 0:2:39]} Qg6 {[%emt 0:0:29]} 31. c5 {[%emt 0:8:27]} bxc5 {[%emt 0:0:4]} 32. Nxc5 {[%emt 0:0:54]} Bd5 {[%emt 0:0:37]} 33. Bd3 {[%emt 0:0:27]} Qg5 {[%emt 0:0:26]} 34. Be4 {[%emt 0:1:10]} Nc7 {[%emt 0:11:6]} 35. Nxe6 {[%emt 0:2:43]} Qc1+ {[%emt 0:0:26]} 36. Kf2 {[%emt 0:0:2]} Bxe6 {[%emt 0:0:13]} 37. Qd8+ {[%emt 0:0:13]} Kf7 {[%emt 0:0:8]} 0-1

[Event "56th Biel Festival MTO 2023"]
[White "Erne,Raphael"]
[Black "Ozcan,Kaan"]
[Site "Biel"]
[Round "4.47"]
[Annotator "ChessBase"]
[Result "0-1"]
[Date "2023.07.20"]
[WhiteElo "2077"]
[BlackElo "2196"]
[PlyCount "74"]
[TimeControl "60"]

1. c4 {[%emt 0:0:0]} c5 {[%emt 0:0:0]} 2. g3 {[%emt 0:0:0]} Nc6 {[%emt 0:0:0]} 3. Bg2 {[%emt 0:0:0]} g6 {[%emt 0:0:0]} 4. Nc3 {[%emt 0:0:0]} Bg7 {[%emt 0:0:0]} 5. Nf3 {[%emt 0:0:0]} e6 {[%emt 0:0:0]} 6. d4 {[%emt 0:0:0]} Nxd4 {[%emt 0:0:0]} 7. Nxd4 {[%emt 0:0:0]} cxd4 {[%emt 0:0:0]} 8. Nb5 {[%emt 0:5:30]} Qb6 {[%emt 0:0:0]} 9. e3 {[%emt 0:13:33]} d5 {[%emt 0:5:50]} 10. Nxd4 {[%emt 0:13:16]} dxc4 {[%emt 0:6:17]} 11. O-O {[%emt 0:5:13]} Ne7 {[%emt 0:3:19]} 12. Qa4+ {[%emt 0:12:29]} Bd7 {[%emt 0:1:46]} 13. Qa3 {[%emt 0:0:22]} e5 {[%emt 0:5:33]} 14. Ne2 {[%emt 0:5:4]} Nc6 {[%emt 0:6:20]} 15. Nc3 {[%emt 0:9:47]} Bf8 {[%emt 0:8:44]} 16. Qa4 {[%emt 0:0:30]} Nb4 {[%emt 0:1:26]} 17. Qd1 {[%emt 0:1:55]} Bc6 {[%emt 0:0:54]} 18. Nd5 {[%emt 0:4:33]} Nxd5 {[%emt 0:3:35]} 19. Bxd5 {[%emt 0:0:5]} Rd8 {[%emt 0:1:0]} 20. Bxc6+ {[%emt 0:4:48]} Qxc6 {[%emt 0:0:35]} 21. Qc2 {[%emt 0:0:18]} Bg7 {[%emt 0:1:6]} 22. e4 {[%emt 0:3:15]} O-O {[%emt 0:0:16]} 23. Be3 {[%emt 0:2:22]} a6 {[%emt 0:4:9]} 24. Rfc1 {[%emt 0:4:40]} Rc8 {[%emt 0:2:24]} 25. a4 {[%emt 0:2:22]} b5 {[%emt 0:5:46]} 26. axb5 {[%emt 0:1:47]} axb5 {[%emt 0:0:11]} 27. b3 {[%emt 0:1:43]} c3 {[%emt 0:3:12]} 28. b4 {[%emt 0:1:26]} Qc4 {[%emt 0:2:30]} 29. Rab1 {[%emt 0:2:31]} Rfd8 {[%emt 0:4:8]} 30. Rb3 {[%emt 0:1:58]} Rd3 {[%emt 0:0:44]} 31. Ra1 {[%emt 0:4:16]} Bf8 {[%emt 0:1:16]} 32. Re1 {[%emt 0:2:13]} Be7 {[%emt 0:2:11]} 33. Rc1 {[%emt 0:0:17]} Qxe4 {[%emt 0:1:34]} 34. Bd2 {[%emt 0:0:40]} cxd2 {[%emt 0:2:25]} 35. Qxc8+ {[%emt 0:0:33]} Kg7 {[%emt 0:0:10]} 36. Rxd3 {[%emt 0:0:11]} dxc1=Q+ {[%emt 0:0:46]} 37. Qxc1 {[%emt 0:0:10]} Qxd3 {[%emt 0:0:6]} 0-1

[Event "56th Biel Festival MTO 2023"]
[White "Ammar,Sedrani"]
[Black "Giacomini,Hector"]
[Site "Biel"]
[Round "4.48"]
[Annotator "NA"]
[Result "1-0"]
[Date "2023.07.20"]
[WhiteElo "2154"]
[BlackElo "2126"]
[PlyCount "70"]
[TimeControl "60"]

1. d4 {[%emt 0:0:0]} d5 {[%emt 0:0:0]} 2. c4 {[%emt 0:0:0]} e6 {[%emt 0:0:0]} 3. Nc3 {[%emt 0:0:0]} Nf6 {[%emt 0:0:0]} 4. cxd5 {[%emt 0:0:0]} exd5 {[%emt 0:0:0]} 5. Bg5 {[%emt 0:0:0]} Be7 {[%emt 0:0:0]} 6. e3 {[%emt 0:0:0]} O-O {[%emt 0:0:0]} 7. Bd3 {[%emt 0:0:0]} Nbd7 {[%emt 0:0:0]} 8. Qc2 {[%emt 0:0:0]} c6 {[%emt 0:0:0]} 9. Nf3 {[%emt 0:0:0]} Re8 {[%emt 0:0:0]} 10. h3 {[%emt 0:0:0]} Nf8 {[%emt 0:0:0]} 11. O-O {[%emt 0:0:0]} Ng6 {[%emt 0:0:0]} 12. Ne5 {[%emt 0:0:0]} Nd7 {[%emt 0:0:0]} 13. Bxe7 {[%emt 0:0:0]} Qxe7 {[%emt 0:0:0]} 14. f4 {[%emt 0:0:0]} Ndxe5 {[%emt 0:0:0]} 15. dxe5 {[%emt 0:0:0]} f6 {[%emt 0:2:22]} 16. exf6 {[%emt 0:0:0]} Qxf6 {[%emt 0:0:30]} 17. Rae1 {[%emt 0:0:0]} Bd7 {[%emt 0:0:30]} 18. Kh2 {[%emt 0:0:0]} Kh8 {[%emt 0:1:45]} 19. g3 {[%emt 0:0:0]} Ne7 {[%emt 0:1:9]} 20. e4 {[%emt 0:0:26]} Qh6 {[%emt 0:0:48]} 21. h4 {[%emt 0:23:17]} dxe4 {[%emt 0:38:11]} 22. Nxe4 {[%emt 0:0:50]} Bf5 {[%emt 0:1:32]} 23. Ng5 {[%emt 0:4:51]} Qg6 {[%emt 0:0:46]} 24. Qb3 {[%emt 0:8:4]} Nd5 {[%emt 0:12:40]} 25. Bxf5 {[%emt 0:8:5]} Qxf5 {[%emt 0:0:6]} 26. Qxb7 {[%emt 0:4:54]} Reb8 {[%emt 0:19:38]} 27. Qxc6 {[%emt 0:4:0]} Rxb2+ {[%emt 0:0:7]} 28. Kh1 {[%emt 0:6:18]} Rf8 {[%emt 0:0:45]} 29. Re8 {[%emt 0:19:36]} Rb8 {[%emt 0:0:14]} 30. Rfe1 {[%emt 0:4:14]} Nf6 {[%emt 0:1:22]} 31. Rxf8+ {[%emt 0:8:8]} Rxf8 {[%emt 0:1:0]} 32. Qe6 {[%emt 0:0:23]} Qxe6 {[%emt 0:5:43]} 33. Rxe6 {[%emt 0:0:3]} h6 {[%emt 0:0:38]} 34. Ne4 {[%emt 0:0:8]} Ng4 {[%emt 0:3:45]} 35. Kg2 {[%emt 0:1:47]} Rc8 {[%emt 0:4:41]} 1-0

[Event "56th Biel Festival MTO 2023"]
[White "Stijve,Niels"]
[Black "Ludwig,Peter"]
[Site "Biel"]
[Round "4.49"]
[Annotator "ChessBase"]
[Result "1-0"]
[Date "2023.07.20"]
[WhiteElo "2088"]
[BlackElo "2147"]
[PlyCount "69"]
[TimeControl "60"]

1. e4 {[%emt 0:0:0]} e6 {[%emt 0:0:0]} 2. d4 {[%emt 0:0:0]} d5 {[%emt 0:0:0]} 3. Nd2 {[%emt 0:0:0]} Be7 {[%emt 0:0:0]} 4. Ngf3 {[%emt 0:0:0]} Nd7 {[%emt 0:0:0]} 5. Bd3 {[%emt 0:0:0]} c5 {[%emt 0:0:0]} 6. c3 {[%emt 0:3:53]} cxd4 {[%emt 0:0:0]} 7. Nxd4 {[%emt 0:4:43]} Ngf6 {[%emt 0:1:12]} 8. exd5 {[%emt 0:3:41]} Nxd5 {[%emt 0:1:1]} 9. N2f3 {[%emt 0:3:20]} a6 {[%emt 0:3:17]} 10. O-O {[%emt 0:2:5]} Qc7 {[%emt 0:5:18]} 11. Ng5 {[%emt 0:15:41]} N7f6 {[%emt 0:2:46]} 12. Qf3 {[%emt 0:13:12]} h6 {[%emt 0:8:2]} 13. Ne4 {[%emt 0:2:24]} Nxe4 {[%emt 0:2:47]} 14. Bxe4 {[%emt 0:7:28]} Nf6 {[%emt 0:0:13]} 15. Bc2 {[%emt 0:4:7]} Bd6 {[%emt 0:2:40]} 16. h3 {[%emt 0:7:4]} Bd7 {[%emt 0:1:52]} 17. Re1 {[%emt 0:4:2]} O-O-O {[%emt 0:2:58]} 18. a4 {[%emt 0:3:24]} Bc6 {[%emt 0:32:21]} 19. Nxc6 {[%emt 0:0:52]} Qxc6 {[%emt 0:0:26]} 20. Qxc6+ {[%emt 0:11:13]} bxc6 {[%emt 0:0:6]} 21. Be3 {[%emt 0:0:5]} Rd7 {[%emt 0:7:19]} 22. Bd1 {[%emt 0:11:56]} Rhd8 {[%emt 0:2:54]} 23. Bf3 {[%emt 0:0:31]} Nd5 {[%emt 0:0:26]} 24. Bd4 {[%emt 0:0:22]} Bf8 {[%emt 0:5:47]} 25. Be2 {[%emt 0:2:21]} a5 {[%emt 0:9:50]} 26. Be5 {[%emt 0:0:32]} Kb7 {[%emt 0:0:16]} 27. Bf3 {[%emt 0:0:31]} f6 {[%emt 0:2:17]} 28. Bg3 {[%emt 0:0:18]} e5 {[%emt 0:0:5]} 29. Rab1 {[%emt 0:0:39]} Nb6 {[%emt 0:1:2]} 30. b4 {[%emt 0:0:30]} axb4 {[%emt 0:8:27]} 31. cxb4 {[%emt 0:0:7]} Nxa4 {[%emt 0:0:4]} 32. b5 {[%emt 0:0:20]} Rd4 {[%emt 0:0:5]} 33. bxc6+ {[%emt 0:0:26]} Kc8 {[%emt 0:0:25]} 34. Rec1 {[%emt 0:1:6]} g6 {[%emt 0:2:23]} 35. c7 {[%emt 0:0:23]} 1-0

[Event "56th Biel Festival MTO 2023"]
[White "Bu,Xiangzhi"]
[Black "Liu,Yan"]
[Site "Biel"]
[Round "5.1"]
[Annotator "RC"]
[Result "1-0"]
[Date "2023.07.21"]
[WhiteElo "2676"]
[BlackElo "2542"]
[PlyCount "85"]
[TimeControl "60"]

1. Nf3 {[%emt 0:0:0]} Nf6 {[%emt 0:0:0]} 2. c4 {[%emt 0:0:0]} b6 {[%emt 0:0:0]} 3. g3 {[%emt 0:0:0]} c5 {[%emt 0:0:0]} 4. Bg2 {[%emt 0:0:0]} Bb7 {[%emt 0:0:0]} 5. O-O {[%emt 0:0:0]} g6 {[%emt 0:0:0]} 6. d4 {[%emt 0:0:0]} cxd4 {[%emt 0:0:0]} 7. Qxd4 {[%emt 0:0:0]} Bg7 {[%emt 0:0:0]} 8. Nc3 {[%emt 0:0:0]} d6 {[%emt 0:0:0]} 9. Rd1 {[%emt 0:0:0]} Nbd7 {[%emt 0:0:0]} 10. Be3 {[%emt 0:0:0]} Rc8 {[%emt 0:0:0]} 11. Rac1 {[%emt 0:0:0]} O-O {[%emt 0:0:0]} 12. Qh4 {[%emt 0:0:0]} a6 {[%emt 0:0:0]} 13. b3 {[%emt 0:0:0]} Re8 {[%emt 0:0:0]} 14. Bh3 {[%emt 0:4:59]} h5 {[%emt 0:0:0]} 15. Ng5 {[%emt 0:2:51]} Ba8 {[%emt 0:0:0]} 16. Qf4 {[%emt 0:10:26]} Rf8 {[%emt 0:0:0]} 17. Qh4 {[%emt 0:4:55]} Re8 {[%emt 0:0:0]} 18. Nge4 {[%emt 0:8:39]} Rb8 {[%emt 0:21:38]} 19. Bg5 {[%emt 0:5:31]} Nxe4 {[%emt 0:10:8]} 20. Nxe4 {[%emt 0:0:26]} Nf6 {[%emt 0:6:45]} 21. Bg2 {[%emt 0:14:31]} Nxe4 {[%emt 0:2:14]} 22. Bxe4 {[%emt 0:0:4]} Bxe4 {[%emt 0:3:45]} 23. Qxe4 {[%emt 0:0:33]} Qc8 {[%emt 0:0:47]} 24. h4 {[%emt 0:4:7]} Qb7 {[%emt 0:1:20]} 25. Qd3 {[%emt 0:2:33]} b5 {[%emt 0:0:46]} 26. cxb5 {[%emt 0:14:12]} axb5 {[%emt 0:0:54]} 27. a4 {[%emt 0:0:18]} Ra8 {[%emt 0:10:2]} 28. Qxb5 {[%emt 0:3:8]} Qxb5 {[%emt 0:0:13]} 29. axb5 {[%emt 0:0:3]} Rab8 {[%emt 0:0:18]} 30. Rd5 {[%emt 0:0:49]} Bf8 {[%emt 0:0:22]} 31. Rc7 {[%emt 0:0:16]} e6 {[%emt 0:3:40]} 32. Rd4 {[%emt 0:0:36]} Rxb5 {[%emt 0:6:10]} 33. Rf4 {[%emt 0:17:1]} f5 {[%emt 0:2:42]} 34. Ra4 {[%emt 0:0:22]} Bg7 {[%emt 0:0:7]} 35. e3 {[%emt 0:4:26]} Rxb3 {[%emt 0:7:20]} 36. Raa7 {[%emt 0:0:4]} Be5 {[%emt 0:2:17]} 37. Rf7 {[%emt 0:4:6]} Reb8 {[%emt 0:19:35]} 38. Rfe7 {[%emt 0:0:22]} Kh8 {[%emt 0:3:34]} 39. Kg2 {[%emt 0:0:20]} Rb2 {[%emt 0:1:23]} 40. Rxe6 {[%emt 0:3:3]} R2b7 {[%emt 0:0:17]} 41. Rxb7 {[%emt 0:30:9]} Rxb7 {[%emt 0:30:4]} 42. Rxg6 {[%emt 0:0:3]} Bg7 {[%emt 0:0:0]} 43. Bf6 {[%emt 0:0:0]} 1-0

[Event "56th Biel Festival MTO 2023"]
[White "Samant Aditya S"]
[Black "Pranav Anand"]
[Site "Biel"]
[Round "5.2"]
[Annotator "RC"]
[Result "1/2-1/2"]
[Date "2023.07.21"]
[WhiteElo "2510"]
[BlackElo "2510"]
[PlyCount "197"]
[TimeControl "60"]

1. e4 {[%emt 0:0:0]} c5 {[%emt 0:0:0]} 2. Nf3 {[%emt 0:0:0]} Nc6 {[%emt 0:0:0]} 3. Bb5 {[%emt 0:0:0]} e6 {[%emt 0:0:0]} 4. O-O {[%emt 0:0:0]} Nge7 {[%emt 0:0:0]} 5. Re1 {[%emt 0:0:0]} Nd4 {[%emt 0:0:0]} 6. Nxd4 {[%emt 0:0:0]} cxd4 {[%emt 0:0:0]} 7. c3 {[%emt 0:0:0]} a6 {[%emt 0:0:0]} 8. Bf1 {[%emt 0:0:0]} Nc6 {[%emt 0:0:0]} 9. b4 {[%emt 0:0:0]} Be7 {[%emt 0:0:0]} 10. a4 {[%emt 0:0:0]} O-O {[%emt 0:0:0]} 11. Na3 {[%emt 0:0:0]} d5 {[%emt 0:0:0]} 12. exd5 {[%emt 0:0:0]} Qxd5 {[%emt 0:0:0]} 13. Nc4 {[%emt 0:0:0]} Rb8 {[%emt 0:0:0]} 14. Nb6 {[%emt 0:20:24]} Qd8 {[%emt 0:0:0]} 15. a5 {[%emt 0:21:45]} Qc7 {[%emt 0:0:0]} 16. Qb3 {[%emt 0:4:44]} Rd8 {[%emt 0:0:0]} 17. Bb2 {[%emt 0:5:56]} Bg5 {[%emt 0:11:22]} 18. cxd4 {[%emt 0:16:25]} Nxd4 {[%emt 0:8:53]} 19. Bxd4 {[%emt 0:0:28]} Rxd4 {[%emt 0:0:2]} 20. Rec1 {[%emt 0:2:8]} Qd8 {[%emt 0:0:4]} 21. b5 {[%emt 0:18:26]} axb5 {[%emt 0:8:43]} 22. Bxb5 {[%emt 0:3:55]} Bxd2 {[%emt 0:7:5]} 23. Rc2 {[%emt 0:1:59]} h6 {[%emt 0:17:54]} 24. g3 {[%emt 0:3:48]} e5 {[%emt 0:4:17]} 25. Rxc8 {[%emt 0:1:11]} Rxc8 {[%emt 0:0:3]} 26. Nxc8 {[%emt 0:0:2]} Qxc8 {[%emt 0:0:15]} 27. a6 {[%emt 0:0:39]} bxa6 {[%emt 0:0:26]} 28. Rxa6 {[%emt 0:1:59]} Qf5 {[%emt 0:13:10]} 29. Bc4 {[%emt 0:0:12]} Rd7 {[%emt 0:1:28]} 30. Ra8+ {[%emt 0:0:5]} Kh7 {[%emt 0:0:3]} 31. Rf8 {[%emt 0:1:15]} Be1 {[%emt 0:1:33]} 32. Qe3 {[%emt 0:0:30]} Qb1 {[%emt 0:23:6]} 33. Kg2 {[%emt 0:0:2]} Qb7+ {[%emt 0:0:10]} 34. Qf3 {[%emt 0:0:40]} Qxf3+ {[%emt 0:0:10]} 35. Kxf3 {[%emt 0:0:2]} Kg6 {[%emt 0:2:39]} 36. Ke2 {[%emt 0:0:55]} Bb4 {[%emt 0:0:13]} 37. Rb8 {[%emt 0:0:10]} Bc5 {[%emt 0:0:6]} 38. Rc8 {[%emt 0:0:30]} Bd4 {[%emt 0:0:13]} 39. Bd3+ {[%emt 0:1:1]} Kf6 {[%emt 0:0:18]} 40. Rc6+ {[%emt 0:0:20]} Ke7 {[%emt 0:0:23]} 41. Be4 {[%emt 0:0:0]} h5 {[%emt 0:0:0]} 42. Rc8 {[%emt 0:0:0]} g6 {[%emt 0:0:0]} 43. h4 {[%emt 0:0:0]} f5 {[%emt 0:0:0]} 44. Bc6 {[%emt 0:6:47]} Ra7 {[%emt 0:0:0]} 45. Ra8 {[%emt 0:0:36]} Rc7 {[%emt 0:0:0]} 46. Ra6 {[%emt 0:0:5]} e4 {[%emt 0:3:8]} 47. f3 {[%emt 0:4:8]} exf3+ {[%emt 0:5:38]} 48. Kxf3 {[%emt 0:0:5]} Be5 {[%emt 0:1:52]} 49. Kg2 {[%emt 0:1:5]} Rc8 {[%emt 0:10:14]} 50. Bf3 {[%emt 0:9:58]} Rc2+ {[%emt 0:0:33]} 51. Kh3 {[%emt 0:0:1]} Rc3 {[%emt 0:2:49]} 52. Kg2 {[%emt 0:0:23]} Rc2+ {[%emt 0:0:49]} 53. Kh3 {[%emt 0:0:2]} Bd6 {[%emt 0:0:59]} 54. Ra1 {[%emt 0:2:55]} Kf6 {[%emt 0:0:55]} 55. Re1 {[%emt 0:0:56]} Rf2 {[%emt 0:1:1]} 56. Bg2 {[%emt 0:0:44]} Kg7 {[%emt 0:1:43]} 57. Re6 {[%emt 0:2:44]} Rd2 {[%emt 0:0:29]} 58. Bf3 {[%emt 0:1:41]} Kh6 {[%emt 0:0:17]} 59. Re2 {[%emt 0:0:20]} Rd4 {[%emt 0:0:49]} 60. Kg2 {[%emt 0:0:24]} Bc7 {[%emt 0:0:9]} 61. Rc2 {[%emt 0:0:26]} Bd8 {[%emt 0:0:31]} 62. Kh3 {[%emt 0:2:8]} Kg7 {[%emt 0:0:49]} 63. Re2 {[%emt 0:0:17]} Rc4 {[%emt 0:1:59]} 64. Rd2 {[%emt 0:0:40]} Bc7 {[%emt 0:0:13]} 65. Kg2 {[%emt 0:0:55]} Rc3 {[%emt 0:0:30]} 66. Re2 {[%emt 0:0:19]} Kh7 {[%emt 0:0:39]} 67. Re1 {[%emt 0:0:35]} Kh6 {[%emt 0:0:29]} 68. Re2 {[%emt 0:0:14]} Rc4 {[%emt 0:0:19]} 69. Re1 {[%emt 0:0:48]} Kg7 {[%emt 0:0:17]} 70. Re2 {[%emt 0:0:10]} Bd8 {[%emt 0:0:15]} 71. Kh3 {[%emt 0:0:15]} f4 {[%emt 0:1:36]} 72. Re8 {[%emt 0:5:40]} Rc3 {[%emt 0:6:4]} 73. Kg2 {[%emt 0:0:6]} Bc7 {[%emt 0:0:7]} 74. gxf4 {[%emt 0:1:28]} Bxf4 {[%emt 0:0:1]} 75. Re6 {[%emt 0:0:46]} Kf7 {[%emt 0:0:21]} 76. Rc6 {[%emt 0:0:44]} Re3 {[%emt 0:0:17]} 77. Kf2 {[%emt 0:0:0]} Re5 {[%emt 0:0:0]} 78. Bd1 {[%emt 0:0:0]} Be3+ {[%emt 0:0:0]} 79. Kg2 {[%emt 0:0:0]} Kg7 {[%emt 0:0:0]} 80. Bc2 {[%emt 0:0:0]} g5 {[%emt 0:0:0]} 81. hxg5 {[%emt 0:0:0]} Bxg5 {[%emt 0:0:0]} 82. Bd1 {[%emt 0:0:0]} Bf6 {[%emt 0:0:0]} 83. Bf3 {[%emt 0:0:0]} Rb5 {[%emt 0:0:0]} 84. Rc2 {[%emt 0:0:0]} Kg6 {[%emt 0:0:0]} 85. Rd2 {[%emt 0:0:0]} Rb4 {[%emt 0:0:0]} 86. Rd5 {[%emt 0:0:0]} Rb2+ {[%emt 0:0:0]} 87. Kg3 {[%emt 0:0:0]} h4+ {[%emt 0:0:0]} 88. Kg4 {[%emt 0:0:0]} Rb4+ {[%emt 0:0:0]} 89. Kh3 {[%emt 0:0:0]} Bg5 {[%emt 0:0:0]} 90. Rc5 {[%emt 0:0:0]} Bf6 {[%emt 0:0:0]} 91. Rd5 {[%emt 0:0:0]} Kf7 {[%emt 0:0:0]} 92. Rd6 {[%emt 0:0:0]} Ke7 {[%emt 0:0:0]} 93. Ra6 {[%emt 0:0:0]} Rb3 {[%emt 0:0:0]} 94. Kg4 {[%emt 0:0:15]} h3 {[%emt 0:0:0]} 95. Ra7+ {[%emt 0:1:21]} Ke6 {[%emt 0:0:0]} 96. Rh7 {[%emt 0:0:9]} Rb4+ {[%emt 0:0:0]} 97. Kxh3 {[%emt 0:0:5]} Rh4+ {[%emt 0:0:0]} 98. Rxh4 {[%emt 0:0:6]} Bxh4 {[%emt 0:0:0]} 99. Kxh4 {[%emt 0:0:6]} 1/2-1/2

[Event "56th Biel Festival MTO 2023"]
[White "Deuer,Marius"]
[Black "Yuffa,Daniil"]
[Site "Biel"]
[Round "5.3"]
[Annotator "RC"]
[Result "1/2-1/2"]
[Date "2023.07.21"]
[WhiteElo "2374"]
[BlackElo "2603"]
[PlyCount "59"]
[TimeControl "60"]

1. d4 {[%emt 0:0:0]} Nf6 {[%emt 0:0:0]} 2. c4 {[%emt 0:0:0]} g6 {[%emt 0:0:0]} 3. g3 {[%emt 0:0:0]} c5 {[%emt 0:0:0]} 4. d5 {[%emt 0:0:0]} b5 {[%emt 0:0:0]} 5. cxb5 {[%emt 0:0:0]} a6 {[%emt 0:0:0]} 6. bxa6 {[%emt 0:0:0]} d6 {[%emt 0:0:0]} 7. Nc3 {[%emt 0:0:0]} Bg7 {[%emt 0:0:0]} 8. Bg2 {[%emt 0:0:0]} O-O {[%emt 0:0:0]} 9. Nf3 {[%emt 0:0:0]} Nxa6 {[%emt 0:0:0]} 10. O-O {[%emt 0:0:0]} Bf5 {[%emt 0:0:0]} 11. Nh4 {[%emt 0:6:26]} Bd7 {[%emt 0:0:0]} 12. Rb1 {[%emt 0:4:25]} Qa5 {[%emt 0:17:59]} 13. Bd2 {[%emt 0:9:5]} Rfb8 {[%emt 0:0:13]} 14. b3 {[%emt 0:9:34]} Nb4 {[%emt 0:15:54]} 15. a4 {[%emt 0:0:56]} Qd8 {[%emt 0:4:1]} 16. h3 {[%emt 0:7:3]} Bc8 {[%emt 0:4:48]} 17. Bc1 {[%emt 0:11:41]} h6 {[%emt 0:14:18]} 18. Re1 {[%emt 0:4:56]} Ba6 {[%emt 0:1:51]} 19. Nf3 {[%emt 0:2:12]} Nd7 {[%emt 0:5:26]} 20. Bb2 {[%emt 0:3:6]} Qf8 {[%emt 0:0:38]} 21. Nd2 {[%emt 0:3:52]} Nb6 {[%emt 0:2:21]} 22. Nf1 {[%emt 0:5:26]} Bd4 {[%emt 0:15:10]} 23. a5 {[%emt 0:6:28]} Qg7 {[%emt 0:2:6]} 24. Qd2 {[%emt 0:1:39]} Nd7 {[%emt 0:0:5]} 25. Ne3 {[%emt 0:5:22]} h5 {[%emt 0:1:23]} 26. Red1 {[%emt 0:1:51]} Ra7 {[%emt 0:1:56]} 27. Ra1 {[%emt 0:5:17]} Rab7 {[%emt 0:5:39]} 28. Na4 {[%emt 0:0:48]} Bxb2 {[%emt 0:0:59]} 29. Nxb2 {[%emt 0:0:23]} Ra7 {[%emt 0:0:18]} 30. f4 {[%emt 0:1:10]} 1/2-1/2